[Event "*** Titled Tuesday Blitz"]
[Site "Chess.com"]
[Date "2020.12.01"]
[Round "6"]
[White "Savagelittlemole"]
[Black "pavelalexandru07"]
[Result "1-0"]
[WhiteElo "2538"]
[BlackElo "2346"]
[TimeControl "180+1"]
[EndTime "11:05:00 PST"]
[Termination "Savagelittlemole won by resignation"]

1. e4 {[%clk 0:03:00.9]} 1... c5 {[%clk 0:02:59.8]} 2. Ne2 {[%clk 0:03:00.6]}
2... d6 {[%clk 0:02:55.1]} 3. g3 {[%clk 0:03:01.2]} 3... Nf6 {[%clk 0:02:54.7]}
4. Bg2 {[%clk 0:03:01.8]} 4... g6 {[%clk 0:02:55.5]} 5. O-O {[%clk 0:03:02.5]}
5... Bg7 {[%clk 0:02:56.2]} 6. c3 {[%clk 0:03:03.2]} 6... O-O {[%clk 0:02:56.5]}
7. d4 {[%clk 0:03:03.9]} 7... e5 {[%clk 0:02:56.5]} 8. h3 {[%clk 0:03:03.1]}
8... Nbd7 {[%clk 0:02:45.6]} 9. Be3 {[%clk 0:03:03.1]} 9... Qc7 {[%clk
0:02:45.9]} 10. Na3 {[%clk 0:03:01.3]} 10... a6 {[%clk 0:02:45.5]} 11. Qd2
{[%clk 0:02:52.9]} 11... b5 {[%clk 0:02:34.2]} 12. Rad1 {[%clk 0:02:51.5]} 12...
Bb7 {[%clk 0:02:33.1]} 13. d5 {[%clk 0:02:51.3]} 13... c4 {[%clk 0:02:32.5]} 14.
Nc2 {[%clk 0:02:44.9]} 14... Nc5 {[%clk 0:02:29.8]} 15. f3 {[%clk 0:02:45.3]}
15... Nfd7 {[%clk 0:02:28.5]} 16. Ne1 {[%clk 0:02:42.8]} 16... a5 {[%clk
0:02:08.2]} 17. Kh2 {[%clk 0:02:40]} 17... f5 {[%clk 0:02:07.8]} 18. Ng1 {[%clk
0:02:32.8]} 18... f4 {[%clk 0:01:47.3]} 19. gxf4 {[%clk 0:02:18.3]} 19... exf4
{[%clk 0:01:48.2]} 20. Bd4 {[%clk 0:02:16.6]} 20... Ne5 {[%clk 0:01:43.6]} 21.
Ne2 {[%clk 0:02:11]} 21... g5 {[%clk 0:01:42.9]} 22. Bf2 {[%clk 0:01:55.4]}
22... h6 {[%clk 0:01:25.5]} 23. Nd4 {[%clk 0:01:53.7]} 23... Qd7 {[%clk
0:01:05.9]} 24. Nf5 {[%clk 0:01:47.8]} 24... Rac8 {[%clk 0:00:51.5]} 25. Nxg7
{[%clk 0:01:44.4]} 25... Qxg7 {[%clk 0:00:51.7]} 26. Bxc5 {[%clk 0:01:39.6]}
26... Rxc5 {[%clk 0:00:51.2]} 27. Nc2 {[%clk 0:01:39.5]} 27... Bc8 {[%clk
0:00:48.2]} 28. Nd4 {[%clk 0:01:37.7]} 28... Qf6 {[%clk 0:00:47.6]} 29. Rf2
{[%clk 0:01:26.2]} 29... h5 {[%clk 0:00:42.3]} 30. Rg1 {[%clk 0:01:21.8]} 30...
Nd3 {[%clk 0:00:42.6]} 31. Rff1 {[%clk 0:01:13]} 31... g4 {[%clk 0:00:43]} 32.
fxg4 {[%clk 0:01:09.6]} 32... hxg4 {[%clk 0:00:40.9]} 33. hxg4 {[%clk
0:01:09.3]} 33... Rf7 {[%clk 0:00:32.3]} 34. Bh3 {[%clk 0:01:06.9]} 34... Rh7
{[%clk 0:00:31.7]} 35. Nf5 {[%clk 0:01:06.8]} 35... Bxf5 {[%clk 0:00:20.1]} 36.
gxf5+ {[%clk 0:01:04.3]} 36... Kf8 {[%clk 0:00:20.3]} 37. Rg6 {[%clk 0:01:00.1]}
37... Qh4 {[%clk 0:00:18.6]} 38. Qg2 {[%clk 0:00:56.2]} 38... Rcc7 {[%clk
0:00:11.1]} 39. Rg8+ {[%clk 0:00:51.3]} 39... Kf7 {[%clk 0:00:11]} 40. Rf3
{[%clk 0:00:42.2]} 40... Ne1 {[%clk 0:00:10.4]} 41. Qg6+ {[%clk 0:00:25.5]} 1-0

[Event "*** Titled Tuesday Blitz"]
[Site "Chess.com"]
[Date "2020.12.01"]
[Round "6"]
[White "Nadeev_Sergey"]
[Black "Iskusnyh"]
[Result "0-1"]
[WhiteElo "2450"]
[BlackElo "2622"]
[TimeControl "180+1"]
[EndTime "11:05:01 PST"]
[Termination "Iskusnyh won by resignation"]

1. d4 {[%clk 0:03:00.9]} 1... d5 {[%clk 0:02:58.6]} 2. Bf4 {[%clk 0:03:00]} 2...
Nf6 {[%clk 0:02:56.9]} 3. e3 {[%clk 0:02:59.5]} 3... c5 {[%clk 0:02:56.7]} 4. c3
{[%clk 0:02:59.7]} 4... Nc6 {[%clk 0:02:56.3]} 5. Nd2 {[%clk 0:02:57.7]} 5...
cxd4 {[%clk 0:02:56.1]} 6. exd4 {[%clk 0:02:56.9]} 6... Bf5 {[%clk 0:02:55.4]}
7. Ngf3 {[%clk 0:02:56.7]} 7... e6 {[%clk 0:02:55.3]} 8. Be2 {[%clk 0:02:56.8]}
8... Be7 {[%clk 0:02:55.1]} 9. O-O {[%clk 0:02:55.1]} 9... O-O {[%clk
0:02:55.5]} 10. Nh4 {[%clk 0:02:49.8]} 10... Be4 {[%clk 0:02:54.9]} 11. Nhf3
{[%clk 0:02:41.7]} 11... Bg6 {[%clk 0:02:48.1]} 12. Ne5 {[%clk 0:02:39.7]} 12...
Nxe5 {[%clk 0:02:45.2]} 13. dxe5 {[%clk 0:02:39.7]} 13... Nd7 {[%clk 0:02:42.5]}
14. Nf3 {[%clk 0:02:34]} 14... Qb6 {[%clk 0:02:29.7]} 15. Qb3 {[%clk 0:02:31.6]}
15... Qc7 {[%clk 0:02:22.3]} 16. Nd4 {[%clk 0:02:28.2]} 16... Nxe5 {[%clk
0:02:10.9]} 17. Bg3 {[%clk 0:02:23.8]} 17... Bf6 {[%clk 0:02:07.8]} 18. f4
{[%clk 0:02:20.5]} 18... Nc6 {[%clk 0:02:03.1]} 19. f5 {[%clk 0:02:14.4]} 19...
Nxd4 {[%clk 0:01:52.6]} 20. cxd4 {[%clk 0:02:13.9]} 20... Bxd4+ {[%clk
0:01:48.2]} 21. Kh1 {[%clk 0:02:14]} 21... Be5 {[%clk 0:01:33.7]} 22. fxg6
{[%clk 0:02:11.1]} 22... hxg6 {[%clk 0:01:33.4]} 23. Rac1 {[%clk 0:02:07.5]}
23... Qd6 {[%clk 0:01:33.8]} 24. Bxe5 {[%clk 0:01:51.9]} 24... Qxe5 {[%clk
0:01:33]} 25. Bd3 {[%clk 0:01:48.2]} 25... b6 {[%clk 0:01:18.5]} 26. Ba6 {[%clk
0:01:46.8]} 26... Rad8 {[%clk 0:01:12.7]} 27. Qc3 {[%clk 0:01:44.5]} 27... Qe4
{[%clk 0:01:01.8]} 28. Bd3 {[%clk 0:01:34.5]} 28... Qe3 {[%clk 0:00:42.4]} 29.
Bb5 {[%clk 0:01:20]} 29... Qg5 {[%clk 0:00:26.2]} 30. Rcd1 {[%clk 0:01:03.5]}
30... Rc8 {[%clk 0:00:22.6]} 31. Qd2 {[%clk 0:01:01.6]} 31... Qxd2 {[%clk
0:00:20.9]} 32. Rxd2 {[%clk 0:01:01.5]} 32... Rc5 {[%clk 0:00:21.5]} 33. Bd3
{[%clk 0:00:56.5]} 33... Rfc8 {[%clk 0:00:21]} 34. Kg1 {[%clk 0:00:55.8]} 34...
f5 {[%clk 0:00:19.6]} 35. Re2 {[%clk 0:00:54.2]} 35... Kf7 {[%clk 0:00:19.7]}
36. Rfe1 {[%clk 0:00:54.6]} 36... R8c6 {[%clk 0:00:18]} 37. Kf2 {[%clk
0:00:54.8]} 37... Kf6 {[%clk 0:00:15.2]} 38. Ke3 {[%clk 0:00:47.4]} 38... e5
{[%clk 0:00:14.4]} 39. Kd2 {[%clk 0:00:47.5]} 39... e4 {[%clk 0:00:14.5]} 40.
Bb1 {[%clk 0:00:47.3]} 40... d4 {[%clk 0:00:14.8]} 41. Rf1 {[%clk 0:00:46.6]}
41... Ke5 {[%clk 0:00:14.3]} 42. g3 {[%clk 0:00:46.3]} 42... d3 {[%clk
0:00:13.6]} 43. Ree1 {[%clk 0:00:43]} 43... Kd4 {[%clk 0:00:13.5]} 44. h4 {[%clk
0:00:41.1]} 44... a5 {[%clk 0:00:11.9]} 45. a3 {[%clk 0:00:40.7]} 45... b5
{[%clk 0:00:11.6]} 46. Re3 {[%clk 0:00:40.6]} 46... Rc2+ {[%clk 0:00:10.9]} 0-1

[Event "*** Titled Tuesday Blitz"]
[Site "Chess.com"]
[Date "2020.12.01"]
[Round "6"]
[White "ljuks68"]
[Black "CheckThis4"]
[Result "0-1"]
[WhiteElo "2386"]
[BlackElo "2547"]
[TimeControl "180+1"]
[EndTime "11:05:02 PST"]
[Termination "CheckThis4 won by resignation"]

1. e4 {[%clk 0:03:00.6]} 1... Nc6 {[%clk 0:02:56.4]} 2. Nf3 {[%clk 0:02:59.7]}
2... e5 {[%clk 0:02:56.5]} 3. Bb5 {[%clk 0:02:58.9]} 3... a6 {[%clk 0:02:55.1]}
4. Ba4 {[%clk 0:02:58.6]} 4... Nf6 {[%clk 0:02:52.3]} 5. Qe2 {[%clk 0:02:57.9]}
5... b5 {[%clk 0:02:47.3]} 6. Bb3 {[%clk 0:02:57.8]} 6... Bc5 {[%clk 0:02:46.3]}
7. c3 {[%clk 0:02:57.7]} 7... O-O {[%clk 0:02:44.7]} 8. d3 {[%clk 0:02:58.1]}
8... h6 {[%clk 0:02:43.9]} 9. Be3 {[%clk 0:02:57.4]} 9... d6 {[%clk 0:02:42.6]}
10. Bxc5 {[%clk 0:02:56.1]} 10... dxc5 {[%clk 0:02:42.3]} 11. Nbd2 {[%clk
0:02:56.6]} 11... Qe7 {[%clk 0:02:29.9]} 12. Nf1 {[%clk 0:02:50.8]} 12... c4
{[%clk 0:02:21.2]} 13. dxc4 {[%clk 0:02:47.3]} 13... Na5 {[%clk 0:02:21.1]} 14.
N1d2 {[%clk 0:02:29]} 14... Bb7 {[%clk 0:02:01.6]} 15. cxb5 {[%clk 0:02:25.5]}
15... axb5 {[%clk 0:01:59.2]} 16. O-O {[%clk 0:02:24.1]} 16... Nxb3 {[%clk
0:01:32.9]} 17. axb3 {[%clk 0:02:22.7]} 17... Qc5 {[%clk 0:01:29.3]} 18. b4
{[%clk 0:02:18.4]} 18... Qb6 {[%clk 0:01:29]} 19. Rxa8 {[%clk 0:01:40.4]} 19...
Rxa8 {[%clk 0:01:29.9]} 20. Re1 {[%clk 0:01:39.5]} 20... Ra2 {[%clk 0:01:18]}
21. Nb3 {[%clk 0:01:38.8]} 21... Bxe4 {[%clk 0:01:03.9]} 22. Nxe5 {[%clk
0:01:28.3]} 22... Qe6 {[%clk 0:00:58.1]} 23. Nc1 {[%clk 0:01:00.6]} 23... Ra1
{[%clk 0:00:55.9]} 24. Ned3 {[%clk 0:00:54.4]} 24... Qc4 {[%clk 0:00:42.1]} 25.
Kf1 {[%clk 0:00:37.7]} 25... Rb1 {[%clk 0:00:29.6]} 26. Nc5 {[%clk 0:00:23.7]}
26... Qxe2+ {[%clk 0:00:22.5]} 27. Nxe2 {[%clk 0:00:14]} 27... Rxb2 {[%clk
0:00:22.2]} 28. Nd4 {[%clk 0:00:14.3]} 28... Bd5 {[%clk 0:00:20.4]} 29. Kg1
{[%clk 0:00:12.2]} 29... Bc4 {[%clk 0:00:20.6]} 30. f3 {[%clk 0:00:10.1]} 30...
Nd5 {[%clk 0:00:20.7]} 31. Re8+ {[%clk 0:00:09.4]} 31... Kh7 {[%clk 0:00:20.4]}
32. Rd8 {[%clk 0:00:08.2]} 32... Nxc3 {[%clk 0:00:20.2]} 33. Rd7 {[%clk
0:00:07.6]} 33... Rd2 {[%clk 0:00:19.5]} 34. Ne4 {[%clk 0:00:06]} 34... Rxd4
{[%clk 0:00:18.5]} 35. Rxd4 {[%clk 0:00:04.3]} 35... Ne2+ {[%clk 0:00:18.5]} 0-1

[Event "*** Titled Tuesday Blitz"]
[Site "Chess.com"]
[Date "2020.12.01"]
[Round "6"]
[White "niki_2003"]
[Black "Taktikmonster"]
[Result "1/2-1/2"]
[WhiteElo "2016"]
[BlackElo "2196"]
[TimeControl "180+1"]
[EndTime "11:05:04 PST"]
[Termination "Game drawn by agreement"]

1. d4 {[%clk 0:02:57.9]} 1... Nf6 {[%clk 0:02:58.3]} 2. c4 {[%clk 0:02:57.6]}
2... e6 {[%clk 0:02:58.1]} 3. g3 {[%clk 0:02:56.3]} 3... Bb4+ {[%clk 0:02:56.2]}
4. Bd2 {[%clk 0:02:55.6]} 4... c5 {[%clk 0:02:48.9]} 5. Nf3 {[%clk 0:02:50.5]}
5... O-O {[%clk 0:02:43.3]} 6. Bg2 {[%clk 0:02:47.4]} 6... d6 {[%clk 0:02:35]}
7. O-O {[%clk 0:02:43.9]} 7... Nc6 {[%clk 0:02:32.5]} 8. Bxb4 {[%clk 0:02:42.8]}
8... cxb4 {[%clk 0:02:33.4]} 9. b3 {[%clk 0:02:39.1]} 9... a5 {[%clk 0:02:23.1]}
10. Nbd2 {[%clk 0:02:34.9]} 10... e5 {[%clk 0:02:22.9]} 11. d5 {[%clk
0:02:34.1]} 11... Nb8 {[%clk 0:02:22.8]} 12. Qc2 {[%clk 0:02:34.2]} 12... Na6
{[%clk 0:02:22.1]} 13. e4 {[%clk 0:02:31.8]} 13... Bd7 {[%clk 0:02:15]} 14. Ne1
{[%clk 0:02:28.6]} 14... Nc5 {[%clk 0:02:11.7]} 15. Nd3 {[%clk 0:02:24]} 15...
Nxd3 {[%clk 0:02:08.9]} 16. Qxd3 {[%clk 0:02:23.4]} 16... Qb6 {[%clk 0:02:01]}
17. Kh1 {[%clk 0:02:22.7]} 17... Rae8 {[%clk 0:01:57.1]} 18. h3 {[%clk 0:02:16]}
18... Bc8 {[%clk 0:01:53.8]} 19. Kh2 {[%clk 0:02:16.4]} 19... Nd7 {[%clk
0:01:54]} 20. Nf3 {[%clk 0:02:08.2]} 20... Nc5 {[%clk 0:01:53.8]} 21. Qe3 {[%clk
0:02:07.5]} 21... Qd8 {[%clk 0:01:47.7]} 22. Ne1 {[%clk 0:02:04.8]} 22... f5
{[%clk 0:01:46.2]} 23. Nd3 {[%clk 0:02:04.4]} 23... f4 {[%clk 0:01:29.5]} 24.
Qe2 {[%clk 0:01:56]} 24... Nxd3 {[%clk 0:01:04]} 25. Qxd3 {[%clk 0:01:55.2]}
25... Rf6 {[%clk 0:00:48.4]} 26. g4 {[%clk 0:01:51.9]} 26... Rh6 {[%clk
0:00:46.4]} 27. f3 {[%clk 0:01:51.3]} 27... Qh4 {[%clk 0:00:45.6]} 28. Qe2
{[%clk 0:01:51.1]} 28... Qg3+ {[%clk 0:00:45]} 29. Kh1 {[%clk 0:01:49.2]} 29...
Rf8 {[%clk 0:00:24.9]} 30. Qf2 {[%clk 0:01:45.7]} 30... Qxf2 {[%clk 0:00:21.4]}
31. Rxf2 {[%clk 0:01:46]} 31... Rhf6 {[%clk 0:00:19.1]} 32. a3 {[%clk
0:01:45.9]} 32... bxa3 {[%clk 0:00:19.6]} 33. Rxa3 {[%clk 0:01:46.1]} 33... b6
{[%clk 0:00:20]} 34. Rfa2 {[%clk 0:01:43.1]} 34... R6f7 {[%clk 0:00:16.1]} 35.
Ra4 {[%clk 0:01:43.4]} 35... Bd7 {[%clk 0:00:12.9]} 36. R4a3 {[%clk 0:01:43.1]}
36... Ra8 {[%clk 0:00:11.4]} 37. Rb2 {[%clk 0:01:43.1]} 37... Be8 {[%clk
0:00:10.8]} 38. b4 {[%clk 0:01:43.2]} 38... Rfa7 {[%clk 0:00:10.7]} 39. Rba2
{[%clk 0:01:38.9]} 39... Bd7 {[%clk 0:00:05.2]} 40. Bf1 {[%clk 0:01:38.2]} 40...
Kf8 {[%clk 0:00:04.4]} 41. Be2 {[%clk 0:01:37.4]} 41... g5 {[%clk 0:00:03.4]}
42. Kg2 {[%clk 0:01:36.2]} 42... Ke7 {[%clk 0:00:03.3]} 43. Kf2 {[%clk
0:01:31.2]} 43... Kd8 {[%clk 0:00:01.1]} 44. Ke1 {[%clk 0:01:19.1]} 44... Kc7
{[%clk 0:00:01.5]} 45. Kd2 {[%clk 0:01:16.2]} 45... Kb7 {[%clk 0:00:02]} 46. b5
{[%clk 0:01:16.6]} 46... a4 {[%clk 0:00:01.9]} 47. Bd1 {[%clk 0:01:15.1]} 47...
Ra5 {[%clk 0:00:02]} 48. Rxa4 {[%clk 0:01:13.2]} 48... Kc7 {[%clk 0:00:02.6]}
49. Kc3 {[%clk 0:01:09.7]} 49... Rxa4 {[%clk 0:00:02.6]} 50. Rxa4 {[%clk
0:01:09.5]} 50... Rxa4 {[%clk 0:00:03.1]} 51. Bxa4 {[%clk 0:01:09.5]} 51... h6
{[%clk 0:00:03.6]} 52. Bd1 {[%clk 0:01:08.7]} 52... Bc8 {[%clk 0:00:03.9]} 53.
Be2 {[%clk 0:01:08.3]} 53... Bd7 {[%clk 0:00:04.3]} 54. Kb4 {[%clk 0:01:08.8]}
54... Bc8 {[%clk 0:00:04.7]} 1/2-1/2

[Event "*** Titled Tuesday Blitz"]
[Site "Chess.com"]
[Date "2020.12.01"]
[Round "6"]
[White "Rsnr"]
[Black "2nd_life"]
[Result "1-0"]
[WhiteElo "2782"]
[BlackElo "2552"]
[TimeControl "180+1"]
[EndTime "11:05:05 PST"]
[Termination "Rsnr won on time"]

1. Nf3 {[%clk 0:03:00.9]} 1... Nf6 {[%clk 0:02:59.5]} 2. g3 {[%clk 0:03:00.3]}
2... d5 {[%clk 0:02:58.9]} 3. d4 {[%clk 0:02:53.9]} 3... c6 {[%clk 0:02:57.8]}
4. Bg2 {[%clk 0:02:53.7]} 4... Bg4 {[%clk 0:02:57.1]} 5. O-O {[%clk 0:02:43.2]}
5... e6 {[%clk 0:02:55.1]} 6. Ne5 {[%clk 0:02:42.8]} 6... Bf5 {[%clk 0:02:53]}
7. c4 {[%clk 0:02:42.8]} 7... Nbd7 {[%clk 0:02:48.6]} 8. Qb3 {[%clk 0:02:40.9]}
8... Qb6 {[%clk 0:02:43.3]} 9. Nc3 {[%clk 0:02:39.1]} 9... Nxe5 {[%clk
0:02:09.1]} 10. dxe5 {[%clk 0:02:40]} 10... Nd7 {[%clk 0:02:09.3]} 11. cxd5
{[%clk 0:02:18.2]} 11... exd5 {[%clk 0:02:03.7]} 12. Bf4 {[%clk 0:01:44.3]}
12... Be6 {[%clk 0:01:59.7]} 13. Qc2 {[%clk 0:01:39.8]} 13... h6 {[%clk
0:01:42.1]} 14. Rfd1 {[%clk 0:01:35.9]} 14... Bb4 {[%clk 0:00:52.3]} 15. Na4
{[%clk 0:01:29.9]} 15... Qa6 {[%clk 0:00:39.1]} 16. a3 {[%clk 0:01:29.5]} 16...
Be7 {[%clk 0:00:34.6]} 17. e4 {[%clk 0:01:22.7]} 17... dxe4 {[%clk 0:00:20.4]}
18. Bxe4 {[%clk 0:01:23.6]} 18... O-O {[%clk 0:00:20]} 19. Bd3 {[%clk
0:00:55.2]} 19... Qa5 {[%clk 0:00:18.9]} 20. Nc3 {[%clk 0:00:55.9]} 20... g5
{[%clk 0:00:15.5]} 21. b4 {[%clk 0:00:54.8]} 21... Qc7 {[%clk 0:00:12.3]} 22.
Be3 {[%clk 0:00:35.8]} 22... Nxe5 {[%clk 0:00:11.3]} 23. Bf5 {[%clk 0:00:35.9]}
23... Qc8 {[%clk 0:00:06.4]} 24. Bh7+ {[%clk 0:00:28.4]} 24... Kg7 {[%clk
0:00:05.2]} 25. Bd4 {[%clk 0:00:29.3]} 25... Bf6 {[%clk 0:00:05.3]} 26. Kg2
{[%clk 0:00:22.8]} 26... Re8 {[%clk 0:00:04]} 27. Ne4 {[%clk 0:00:16.4]} 27...
Bd5 {[%clk 0:00:03.3]} 28. f3 {[%clk 0:00:10.1]} 28... Nd7 {[%clk 0:00:01.3]}
29. Nxf6 {[%clk 0:00:06.1]} 29... Nxf6 {[%clk 0:00:02.2]} 30. Bf5 {[%clk
0:00:06.4]} 30... Qc7 {[%clk 0:00:01.9]} 31. Re1 {[%clk 0:00:06.8]} 31... Rxe1
{[%clk 0:00:01.5]} 32. Rxe1 {[%clk 0:00:07.7]} 1-0

[Event "*** Titled Tuesday Blitz"]
[Site "Chess.com"]
[Date "2020.12.01"]
[Round "6"]
[White "BillieKimbah"]
[Black "Leonid_Starozhilov"]
[Result "1-0"]
[WhiteElo "2852"]
[BlackElo "2661"]
[TimeControl "180+1"]
[EndTime "11:05:07 PST"]
[Termination "BillieKimbah won by resignation"]

1. d4 {[%clk 0:02:58.2]} 1... Nf6 {[%clk 0:02:54.9]} 2. Nf3 {[%clk 0:02:58.3]}
2... e6 {[%clk 0:02:55.8]} 3. Bg5 {[%clk 0:02:57.7]} 3... b6 {[%clk 0:02:52.9]}
4. Nbd2 {[%clk 0:02:54]} 4... Bb7 {[%clk 0:02:52]} 5. e3 {[%clk 0:02:53.7]} 5...
d5 {[%clk 0:02:49.9]} 6. Bd3 {[%clk 0:02:52.9]} 6... Be7 {[%clk 0:02:49]} 7. c3
{[%clk 0:02:49.9]} 7... Nbd7 {[%clk 0:02:45.2]} 8. Qe2 {[%clk 0:02:48.9]} 8...
O-O {[%clk 0:02:36.2]} 9. h4 {[%clk 0:02:45.9]} 9... Ne4 {[%clk 0:02:34.7]} 10.
Bf4 {[%clk 0:02:41.7]} 10... Bd6 {[%clk 0:02:24.6]} 11. Ng5 {[%clk 0:02:40.7]}
11... Ndf6 {[%clk 0:02:01.3]} 12. Be5 {[%clk 0:02:40.5]} 12... Bxe5 {[%clk
0:01:18.2]} 13. dxe5 {[%clk 0:02:38.4]} 13... Nd7 {[%clk 0:01:12]} 14. Qh5
{[%clk 0:02:16.5]} 14... h6 {[%clk 0:01:03.6]} 15. Ngxe4 {[%clk 0:02:16]} 15...
dxe4 {[%clk 0:00:59.5]} 16. Bxe4 {[%clk 0:02:13.7]} 16... Bxe4 {[%clk
0:00:38.3]} 17. Nxe4 {[%clk 0:02:14.6]} 17... Qe7 {[%clk 0:00:37.9]} 18. O-O-O
{[%clk 0:02:09.3]} 18... Rad8 {[%clk 0:00:35.8]} 19. Rd4 {[%clk 0:01:58.9]}
19... Nc5 {[%clk 0:00:34.1]} 20. Nxc5 {[%clk 0:01:51.1]} 20... Qxc5 {[%clk
0:00:31.2]} 21. Rhd1 {[%clk 0:01:51]} 21... Rxd4 {[%clk 0:00:16.4]} 22. Rxd4
{[%clk 0:01:51.9]} 22... Qb5 {[%clk 0:00:13.4]} 23. Kc2 {[%clk 0:01:40.4]} 23...
Qf1 {[%clk 0:00:12.9]} 24. Qf3 {[%clk 0:01:39.3]} 24... Qa6 {[%clk 0:00:11.1]}
25. a3 {[%clk 0:01:38]} 25... Qb5 {[%clk 0:00:10.9]} 26. Qe4 {[%clk 0:01:31]}
26... Qe2+ {[%clk 0:00:10.7]} 27. Rd2 {[%clk 0:01:31]} 27... Qb5 {[%clk
0:00:09.9]} 28. g4 {[%clk 0:01:28]} 28... a5 {[%clk 0:00:08.5]} 29. a4 {[%clk
0:01:27.4]} 29... Qc5 {[%clk 0:00:07.4]} 30. h5 {[%clk 0:01:24.8]} 30... Qe7
{[%clk 0:00:06.3]} 31. Qd4 {[%clk 0:01:22.6]} 31... Rc8 {[%clk 0:00:05.4]} 32.
Qd7 {[%clk 0:01:22]} 32... Qxd7 {[%clk 0:00:05.3]} 33. Rxd7 {[%clk 0:01:22.9]}
33... Kf8 {[%clk 0:00:06]} 34. Kb3 {[%clk 0:01:18.2]} 34... Ke8 {[%clk
0:00:06.2]} 35. Rd4 {[%clk 0:01:18.7]} 35... Ke7 {[%clk 0:00:05.7]} 36. Kc4
{[%clk 0:01:18.6]} 36... c6 {[%clk 0:00:04.1]} 37. Rd6 {[%clk 0:01:18.6]} 37...
Rc7 {[%clk 0:00:04.5]} 38. Rd4 {[%clk 0:01:12.7]} 38... Rc8 {[%clk 0:00:03.8]}
39. Rd2 {[%clk 0:01:12.7]} 39... Rc7 {[%clk 0:00:04.2]} 40. b3 {[%clk
0:01:10.6]} 40... Rb7 {[%clk 0:00:03.8]} 41. Rd6 {[%clk 0:01:09.4]} 41... Rc7
{[%clk 0:00:04.3]} 42. b4 {[%clk 0:01:09.3]} 42... axb4 {[%clk 0:00:04.6]} 43.
cxb4 {[%clk 0:01:10.2]} 43... Ra7 {[%clk 0:00:03.3]} 44. Rxc6 {[%clk 0:01:08.2]}
44... Rxa4 {[%clk 0:00:03.7]} 45. Rxb6 {[%clk 0:01:08.7]} 45... Ra2 {[%clk
0:00:04.1]} 46. Rb7+ {[%clk 0:01:08.8]} 46... Ke8 {[%clk 0:00:04.1]} 47. b5
{[%clk 0:01:00.5]} 47... Rxf2 {[%clk 0:00:03.8]} 48. Ra7 {[%clk 0:00:59.8]}
48... Rc2+ {[%clk 0:00:03.7]} 49. Kb4 {[%clk 0:00:59]} 49... Rb2+ {[%clk
0:00:03.4]} 50. Kc5 {[%clk 0:00:58.6]} 50... Rc2+ {[%clk 0:00:03.2]} 51. Kd6
{[%clk 0:00:58.1]} 51... Rd2+ {[%clk 0:00:03.1]} 52. Kc6 {[%clk 0:00:58.5]}
52... Rc2+ {[%clk 0:00:03.6]} 53. Kb6 {[%clk 0:00:58.7]} 53... f6 {[%clk
0:00:02.4]} 54. Rxg7 {[%clk 0:00:58]} 1-0

[Event "*** Titled Tuesday Blitz"]
[Site "Chess.com"]
[Date "2020.12.01"]
[Round "6"]
[White "gmcorrales"]
[Black "GelmanAlexander"]
[Result "1-0"]
[WhiteElo "2784"]
[BlackElo "2573"]
[TimeControl "180+1"]
[EndTime "11:05:07 PST"]
[Termination "gmcorrales won on time"]

1. e4 {[%clk 0:02:30.2]} 1... c5 {[%clk 0:02:59.8]} 2. Nf3 {[%clk 0:02:30.1]}
2... e6 {[%clk 0:03:00.3]} 3. d4 {[%clk 0:02:30.7]} 3... cxd4 {[%clk 0:03:00.5]}
4. Nxd4 {[%clk 0:02:31.6]} 4... a6 {[%clk 0:03:01.1]} 5. Bd3 {[%clk 0:02:31.7]}
5... d6 {[%clk 0:03:01.2]} 6. c4 {[%clk 0:02:31.2]} 6... Nf6 {[%clk 0:03:01.4]}
7. Nc3 {[%clk 0:02:31.4]} 7... Nbd7 {[%clk 0:02:59.8]} 8. O-O {[%clk 0:02:31.5]}
8... b6 {[%clk 0:02:59]} 9. b4 {[%clk 0:02:31.2]} 9... Bb7 {[%clk 0:02:58.4]}
10. a3 {[%clk 0:02:30.9]} 10... Rc8 {[%clk 0:02:57.6]} 11. Bb2 {[%clk
0:02:30.5]} 11... g5 {[%clk 0:02:56.6]} 12. Qd2 {[%clk 0:02:24]} 12... Rg8
{[%clk 0:02:55.7]} 13. Rfe1 {[%clk 0:02:21.2]} 13... Ne5 {[%clk 0:02:53.4]} 14.
Rad1 {[%clk 0:02:18.2]} 14... Be7 {[%clk 0:02:07.1]} 15. Qe2 {[%clk 0:01:29.8]}
15... g4 {[%clk 0:01:58.2]} 16. Kh1 {[%clk 0:01:27]} 16... h5 {[%clk 0:01:56.5]}
17. c5 {[%clk 0:01:21.2]} 17... bxc5 {[%clk 0:01:42.7]} 18. bxc5 {[%clk
0:01:19.7]} 18... Rxc5 {[%clk 0:01:32.5]} 19. Bxa6 {[%clk 0:01:18.8]} 19... Ba8
{[%clk 0:01:32.9]} 20. Na4 {[%clk 0:01:06.6]} 20... Ra5 {[%clk 0:01:08.6]} 21.
Nb3 {[%clk 0:01:00.8]} 21... Nxe4 {[%clk 0:00:43]} 22. Bb5+ {[%clk 0:00:34.7]}
22... Rxb5 {[%clk 0:00:34.4]} 23. Qxb5+ {[%clk 0:00:35.6]} 23... Bc6 {[%clk
0:00:34.6]} 24. Qe2 {[%clk 0:00:34.7]} 24... Nf3 {[%clk 0:00:26.4]} 25. Nd4
{[%clk 0:00:22.1]} 25... Nxd4 {[%clk 0:00:25.8]} 26. Rxd4 {[%clk 0:00:22.3]}
26... f5 {[%clk 0:00:21.9]} 27. Nc3 {[%clk 0:00:21.4]} 27... Bf6 {[%clk
0:00:17.6]} 28. Nxe4 {[%clk 0:00:21.2]} 28... Bxd4 {[%clk 0:00:17.5]} 29. Nc5
{[%clk 0:00:16.7]} 29... dxc5 {[%clk 0:00:09.7]} 30. Qxe6+ {[%clk 0:00:16.7]}
30... Kf8 {[%clk 0:00:10.1]} 31. Bxd4 {[%clk 0:00:14.2]} 31... Bxg2+ {[%clk
0:00:06.7]} 32. Kxg2 {[%clk 0:00:15.1]} 32... cxd4 {[%clk 0:00:07.4]} 33. Qh6+
{[%clk 0:00:14.9]} 33... Rg7 {[%clk 0:00:07]} 34. Qh8+ {[%clk 0:00:14.8]} 34...
Rg8 {[%clk 0:00:05.7]} 35. Qxh5 {[%clk 0:00:15.4]} 35... Qd5+ {[%clk 0:00:04.9]}
36. Kg1 {[%clk 0:00:15.9]} 36... Kg7 {[%clk 0:00:02.6]} 37. Qg5+ {[%clk
0:00:14.6]} 1-0